[Event "NOR-chT Eliteserien 2018-19"]
[Site "Norway"]
[Date "2019.03.09"]
[Round "8.5"]
[White "Andersen, Alf Roger"]
[Black "Galinsky, Timofey"]
[Result "0-1"]
[ECO "D05"]
[WhiteElo "2251"]
[BlackElo "2369"]
[Annotator "NA"]
[PlyCount "136"]
[EventDate "2018.11.02"]
[EventType "team-tourn"]
[EventCountry "NOR"]
[SourceTitle "playchess.com"]
[Source "ChessBase"]
[SourceQuality "1"]
[TimeControl "40/5400+30:1800+30"]

1. Nf3 {[%emt 0:00:00]} d5 {[%emt 0:00:00]} 2. e3 {[%emt 0:00:02]} c6 {[%emt 0:01:21]} 3. c4 {[%emt 0:03:29]} e6 {[%emt 0:00:07]} 4. b3 {[%emt 0:01:49]} Nd7 {[%emt 0:01:09]} 5. Bb2 {[%emt 0:00:15]} Ngf6 {[%emt 0:00:07]} 6. Be2 {[%emt 0:02:38]} Bd6 {[%emt 0:01:21]} 7. d4 {[%emt 0:02:58]} Ne4 {[%emt 0:00:57]} 8. O-O {[%emt 0:02:05]} O-O {[%emt 0:00:28]} 9. Nbd2 {[%emt 0:07:36]} f5 {[%emt 0:00:41]} 10. Ne5 {[%emt 0:04:03]} Ndf6 {[%emt 0:06:45]} 11. Ndf3 {[%emt 0:08:10]} Bd7 {[%emt 0:01:21]} 12. Nd3 {[%emt 0:03:10]} Qe7 {[%emt 0:02:21]} 13. Nfe5 {[%emt 0:03:05]} Be8 {[%emt 0:00:08]} 14. Qc2 {[%emt 0:02:48]} Bh5 {[%emt 0:02:06]} 15. f3 {[%emt 0:05:03]} Ng5 {[%emt 0:00:15]} 16. h4 {[%emt 0:06:10]} Nf7 {[%emt 0:00:09]} 17. Nf4 {[%emt 0:00:39]} Nh6 {[%emt 0:03:50]} 18. Bd3 {[%emt 0:11:32]} Be8 {[%emt 0:01:05]} 19. Qf2 {[%emt 0:02:27]} Nd7 {[%emt 0:00:38]} 20. Nh3 {[%emt 0:07:44]} Nxe5 {[%emt 0:03:02]} 21. dxe5 {[%emt 0:00:06]} Ba3 {[%emt 0:00:18]} 22. Bxa3 {[%emt 0:04:28]} Qxa3 {[%emt 0:00:06]} 23. Ng5 {[%emt 0:02:47]} Qe7 {[%emt 0:00:07]} 24. Rae1 {[%emt 0:01:53]} Rd8 {[%emt 0:01:35]} 25. Qg3 {[%emt 0:04:49]} Nf7 {[%emt 0:02:35]} 26. Nh3 {[%emt 0:04:10]} dxc4 {[%emt 0:02:24]} 27. Bxc4 {[%emt 0:00:44]} b5 {[%emt 0:00:06]} 28. Be2 {[%emt 0:00:46]} Rd2 {[%emt 0:03:00]} 29. a4 {[%emt 0:00:31]} a6 {[%emt 0:00:04]} 30. Kh1 {[%emt 0:05:33]} Qc7 {[%emt 0:01:56]} 31. f4 {[%emt 0:01:14]} c5 {[%emt 0:00:07]} 32. e4 {[%emt 0:02:16]} fxe4 {[%emt 0:02:41]} 33. Bg4 {[%emt 0:00:23]} Qe7 {[%emt 0:02:07]} 34. Rxe4 {[%emt 0:00:41]} Bc6 {[%emt 0:00:37]} 35. Re2 {[%emt 0:00:32]} Rfd8 {[%emt 0:00:08]} 36. Ng5 {[%emt 0:00:45]} Nxg5 {[%emt 0:04:32]} 37. fxg5 {[%emt 0:00:17]} R2d3 {[%emt 0:02:01]} 38. Re3 {[%emt 0:00:48]} c4 {[%emt 0:00:12]} 39. axb5 {[%emt 0:00:28]} axb5 {[%emt 0:00:21]} 40. bxc4 {[%emt 0:00:31]} bxc4 {[%emt 0:00:05]} 41. Be2 {[%emt 0:13:36]} Rxe3 {[%emt 0:02:49]} 42. Qxe3 {[%emt 0:00:56]} Bd5 {[%emt 0:00:05]} 43. Rc1 {[%emt 0:02:54]} Rc8 {[%emt 0:00:53]} 44. Kh2 {[%emt 0:07:35]} h6 {[%emt 0:00:39]} 45. Qg3 {[%emt 0:01:09]} hxg5 {[%emt 0:01:25]} 46. hxg5 {[%emt 0:00:02]} Qb4 {[%emt 0:01:40]} 47. Rc3 {[%emt 0:03:50]} Qb2 {[%emt 0:01:49]} 48. Bg4 {[%emt 0:01:20]} Re8 {[%emt 0:00:29]} 49. Bh5 {[%emt 0:01:30]} Rf8 {[%emt 0:00:12]} 50. Re3 {[%emt 0:01:47]} Rf2 {[%emt 0:00:57]} 51. Bf3 {[%emt 0:00:52]} Bxf3 {[%emt 0:00:20]} 52. Rxf3 {[%emt 0:00:06]} Rxf3 {[%emt 0:00:04]} 53. Qxf3 {[%emt 0:00:19]} Qxe5+ {[%emt 0:00:05]} 54. g3 {[%emt 0:00:38]} Qxg5 {[%emt 0:02:07]} 55. Qa8+ {[%emt 0:00:58]} Kf7 {[%emt 0:00:16]} 56. Qa7+ {[%emt 0:00:29]} Kg6 {[%emt 0:00:10]} 57. Qd7 {[%emt 0:00:30]} Qd5 {[%emt 0:00:38]} 58. Qe8+ {[%emt 0:00:16]} Kh7 {[%emt 0:00:06]} 59. Qc8 {[%emt 0:00:40]} Qd2+ {[%emt 0:01:24]} 60. Kh3 {[%emt 0:00:03]} c3 {[%emt 0:00:17]} 61. Qc4 {[%emt 0:00:59]} c2 {[%emt 0:01:39]} 62. Qe4+ {[%emt 0:00:11]} g6 {[%emt 0:00:58]} 63. Qb7+ {[%emt 0:00:51]} Kh6 {[%emt 0:00:05]} 64. Qe7 {[%emt 0:00:31]} Qf2 {[%emt 0:01:08]} 65. Qh4+ {[%emt 0:00:32]} Kg7 {[%emt 0:00:03]} 66. Qc4 {[%emt 0:00:29]} Qf5+ {[%emt 0:01:10]} 67. g4 {[%emt 0:00:30]} Qf3+ {[%emt 0:00:16]} 68. Kh4 {[%emt 0:00:30]} g5+ {[%emt 0:00:18]} 0-1

[Event "NOR-chT Eliteserien 2018-19"]
[Site "Norway"]
[Date "2019.03.09"]
[Round "8.6"]
[White "Elseth, Roar"]
[Black "Gudbrandsen, Gustav"]
[Result "1/2-1/2"]
[ECO "A25"]
[WhiteElo "2278"]
[BlackElo "2241"]
[Annotator "NA"]
[PlyCount "69"]
[EventDate "2018.11.02"]
[EventType "team-tourn"]
[EventCountry "NOR"]
[SourceTitle "playchess.com"]
[Source "ChessBase"]
[SourceQuality "1"]
[TimeControl "40/5400+30:1800+30"]

1. c4 {[%emt 0:00:00]} Nf6 {[%emt 0:00:58]} 2. Nc3 {[%emt 0:00:14]} Nc6 {[%emt 0:01:51]} 3. g3 {[%emt 0:02:30]} e5 {[%emt 0:01:44]} 4. Bg2 {[%emt 0:00:34]} d6 {[%emt 0:01:53]} 5. d3 {[%emt 0:03:25]} Be7 {[%emt 0:03:13]} 6. Rb1 {[%emt 0:03:28]} O-O {[%emt 0:04:29]} 7. b4 {[%emt 0:03:28]} a6 {[%emt 0:05:33]} 8. a3 {[%emt 0:07:33]} Be6 {[%emt 0:12:57]} 9. Nd5 {[%emt 0:11:43]} Bxd5 {[%emt 0:00:26]} 10. cxd5 {[%emt 0:00:05]} Na7 {[%emt 0:01:05]} 11. e3 {[%emt 0:03:27]} c6 {[%emt 0:01:55]} 12. dxc6 {[%emt 0:03:04]} bxc6 {[%emt 0:06:37]} 13. Ne2 {[%emt 0:03:20]} a5 {[%emt 0:05:16]} 14. O-O {[%emt 0:02:24]} axb4 {[%emt 0:01:36]} 15. axb4 {[%emt 0:00:52]} Qb6 {[%emt 0:01:47]} 16. Nc3 {[%emt 0:12:56]} Nb5 {[%emt 0:01:05]} 17. Bb2 {[%emt 0:03:03]} Na3 {[%emt 0:05:17]} 18. Bxa3 {[%emt 0:05:16]} Rxa3 {[%emt 0:00:06]} 19. Qc1 {[%emt 0:01:50]} Ra7 {[%emt 0:14:31]} 20. b5 {[%emt 0:01:19]} cxb5 {[%emt 0:00:31]} 21. Nxb5 {[%emt 0:00:16]} Rd7 {[%emt 0:03:05]} 22. Nd4 {[%emt 0:03:38]} Qa6 {[%emt 0:03:39]} 23. Nc6 {[%emt 0:01:39]} Qxd3 {[%emt 0:05:35]} 24. Rd1 {[%emt 0:00:10]} Qf5 {[%emt 0:02:10]} 25. Nxe7+ {[%emt 0:02:42]} Rxe7 {[%emt 0:00:06]} 26. Rxd6 {[%emt 0:00:36]} Ne4 {[%emt 0:00:46]} 27. Bxe4 {[%emt 0:00:15]} Qxe4 {[%emt 0:00:11]} 28. Qd1 {[%emt 0:01:01]} h5 {[%emt 0:01:21]} 29. Rd8 {[%emt 0:01:21]} Ree8 {[%emt 0:00:44]} 30. Rbb8 {[%emt 0:02:43]} Rxd8 {[%emt 0:01:00]} 31. Rxd8 {[%emt 0:00:07]} Rxd8 {[%emt 0:00:35]} 32. Qxd8+ {[%emt 0:00:07]} Kh7 {[%emt 0:00:11]} 33. Qg5 {[%emt 0:00:40]} g6 {[%emt 0:00:29]} 34. Qf6 {[%emt 0:00:47]} Kg8 {[%emt 0:00:32]} 35. h4 {[%emt 0:00:22]} 1/2-1/2

[Event "NOR-chT Eliteserien 2018-19"]
[Site "Norway"]
[Date "2019.03.09"]
[Round "8.7"]
[White "Galchenko, Matvey"]
[Black "Haldorsen, Benjamin"]
[Result "1-0"]
[ECO "A29"]
[WhiteElo "2361"]
[BlackElo "2454"]
[Annotator "ChessBase"]
[PlyCount "131"]
[EventDate "2018.11.02"]
[EventType "team-tourn"]
[EventCountry "NOR"]
[SourceTitle "playchess.com"]
[Source "ChessBase"]
[SourceQuality "1"]
[TimeControl "40/5400+30:1800+30"]

1. c4 {[%emt 0:00:00]} Nf6 {[%emt 0:00:00]} 2. Nc3 {[%emt 0:00:13]} e5 {[%emt 0:00:00]} 3. g3 {[%emt 0:01:19]} Bb4 {[%emt 0:00:49]} 4. Bg2 {[%emt 0:00:15]} O-O {[%emt 0:00:34]} 5. Nf3 {[%emt 0:00:17]} Re8 {[%emt 0:03:22]} 6. O-O {[%emt 0:01:08]} e4 {[%emt 0:00:36]} 7. Ne1 {[%emt 0:08:01]} Bxc3 {[%emt 0:09:45]} 8. bxc3 {[%emt 0:00:46]} d5 {[%emt 0:01:52]} 9. cxd5 {[%emt 0:00:20]} Qxd5 {[%emt 0:00:21]} 10. d3 {[%emt 0:12:32]} Nc6 {[%emt 0:07:20]} 11. Bf4 {[%emt 0:20:51]} Qh5 {[%emt 0:20:11]} 12. dxe4 {[%emt 0:05:54]} Nxe4 {[%emt 0:01:16]} 13. Qc2 {[%emt 0:00:08]} Ng5 {[%emt 0:09:48]} 14. Bxg5 {[%emt 0:01:57]} Qxg5 {[%emt 0:00:06]} 15. Rb1 {[%emt 0:11:36]} Qc5 {[%emt 0:06:33]} 16. Nd3 {[%emt 0:12:24]} Qc4 {[%emt 0:00:52]} 17. Nf4 {[%emt 0:00:36]} b6 {[%emt 0:14:01]} 18. Rfd1 {[%emt 0:11:26]} Rb8 {[%emt 0:08:02]} 19. a4 {[%emt 0:05:55]} Be6 {[%emt 0:04:07]} 20. Be4 {[%emt 0:01:25]} h6 {[%emt 0:01:03]} 21. Rb5 {[%emt 0:01:17]} Rbd8 {[%emt 0:03:37]} 22. Bd3 {[%emt 0:00:41]} Qa2 {[%emt 0:00:33]} 23. Rb2 {[%emt 0:01:05]} Qa3 {[%emt 0:00:07]} 24. Rbb1 {[%emt 0:00:40]} Ne5 {[%emt 0:04:17]} 25. Bh7+ {[%emt 0:00:48]} Kh8 {[%emt 0:00:01]} 26. Nxe6 {[%emt 0:00:24]} fxe6 {[%emt 0:00:08]} 27. Be4 {[%emt 0:00:11]} Qc5 {[%emt 0:00:55]} 28. e3 {[%emt 0:00:24]} Rxd1+ {[%emt 0:02:03]} 29. Qxd1 {[%emt 0:00:31]} Qd6 {[%emt 0:01:09]} 30. Qh5 {[%emt 0:00:21]} Rf8 {[%emt 0:00:20]} 31. Rd1 {[%emt 0:01:14]} Qc5 {[%emt 0:00:03]} 32. Rd4 {[%emt 0:00:37]} Nd7 {[%emt 0:01:23]} 33. Qg6 {[%emt 0:00:18]} Nf6 {[%emt 0:00:01]} 34. Rd7 {[%emt 0:00:14]} Qg5 {[%emt 0:00:50]} 35. Rxc7 {[%emt 0:00:12]} Qxg6 {[%emt 0:00:49]} 36. Bxg6 {[%emt 0:00:01]} Nd5 {[%emt 0:00:27]} 37. Rxa7 {[%emt 0:01:16]} Nxc3 {[%emt 0:00:02]} 38. h4 {[%emt 0:00:10]} Nd1 {[%emt 0:00:23]} 39. Bf7 {[%emt 0:00:05]} g5 {[%emt 0:00:32]} 40. h5 {[%emt 0:00:54]} e5 {[%emt 0:01:00]} 41. Rb7 {[%emt 0:09:46]} g4 {[%emt 0:06:46]} 42. Kg2 {[%emt 0:15:12]} Nc3 {[%emt 0:05:06]} 43. Bb3 {[%emt 0:03:22]} Ne4 {[%emt 0:00:53]} 44. Rxb6 {[%emt 0:01:25]} Rxf2+ {[%emt 0:01:21]} 45. Kg1 {[%emt 0:00:04]} Re2 {[%emt 0:09:47]} 46. Rxh6+ {[%emt 0:02:10]} Kg7 {[%emt 0:00:00]} 47. Rg6+ {[%emt 0:00:08]} Kh7 {[%emt 0:01:45]} 48. Rxg4 {[%emt 0:00:51]} Nf2 {[%emt 0:01:44]} 49. Rb4 {[%emt 0:00:52]} Nd3 {[%emt 0:00:25]} 50. Rb6 {[%emt 0:00:40]} Nc5 {[%emt 0:01:13]} 51. Rb5 {[%emt 0:01:49]} Rxe3 {[%emt 0:02:48]} 52. Bc2+ {[%emt 0:00:14]} Nd3 {[%emt 0:00:09]} 53. Bxd3+ {[%emt 0:00:23]} Rxd3 {[%emt 0:00:01]} 54. Kf2 {[%emt 0:00:08]} Ra3 {[%emt 0:01:03]} 55. Rxe5 {[%emt 0:00:59]} Rxa4 {[%emt 0:00:02]} 56. Kg2 {[%emt 0:00:10]} Kh6 {[%emt 0:00:17]} 57. Kh3 {[%emt 0:00:11]} Ra1 {[%emt 0:00:58]} 58. Kh4 {[%emt 0:00:09]} Ra4+ {[%emt 0:00:57]} 59. g4 {[%emt 0:00:05]} Rb4 {[%emt 0:00:28]} 60. Re6+ {[%emt 0:00:04]} Kg7 {[%emt 0:00:02]} 61. Ra6 {[%emt 0:00:35]} Rb5 {[%emt 0:00:28]} 62. h6+ {[%emt 0:00:25]} Kh7 {[%emt 0:00:08]} 63. g5 {[%emt 0:00:04]} Rb1 {[%emt 0:00:07]} 64. Ra7+ {[%emt 0:00:03]} Kg6 {[%emt 0:00:08]} 65. Rg7+ {[%emt 0:00:12]} Kf5 {[%emt 0:00:05]} 66. h7 {[%emt 0:00:22]} 1-0

[Event "NOR-chT Eliteserien 2018-19"]
[Site "Norway"]
[Date "2019.03.09"]
[Round "8.8"]
[White "Nilsen, Joachim Birger"]
[Black "Mikalsen, Erlend"]
[Result "1/2-1/2"]
[ECO "A47"]
[WhiteElo "2397"]
[BlackElo "2357"]
[Annotator "NA"]
[PlyCount "39"]
[EventDate "2018.11.02"]
[EventType "team-tourn"]
[EventCountry "NOR"]
[SourceTitle "playchess.com"]
[Source "ChessBase"]
[SourceQuality "1"]
[TimeControl "40/5400+30:1800+30"]

1. d4 {[%emt 0:00:00]} Nf6 {[%emt 0:00:00]} 2. Nf3 {[%emt 0:00:52]} b6 {[%emt 0:00:00]} 3. e3 {[%emt 0:03:29]} Bb7 {[%emt 0:00:00]} 4. Bd3 {[%emt 0:00:36]} g6 {[%emt 0:00:05]} 5. c4 {[%emt 0:04:36]} Bg7 {[%emt 0:00:29]} 6. O-O {[%emt 0:01:39]} O-O {[%emt 0:00:06]} 7. Nc3 {[%emt 0:00:45]} d5 {[%emt 0:00:03]} 8. Qe2 {[%emt 0:02:08]} e6 {[%emt 0:09:02]} 9. e4 {[%emt 0:03:00]} dxe4 {[%emt 0:01:24]} 10. Nxe4 {[%emt 0:00:08]} Nc6 {[%emt 0:04:34]} 11. Be3 {[%emt 0:13:35]} Ne7 {[%emt 0:08:49]} 12. Nc3 {[%emt 0:10:38]} Nf5 {[%emt 0:02:10]} 13. Rad1 {[%emt 0:02:41]} Nxe3 {[%emt 0:04:05]} 14. Qxe3 {[%emt 0:07:47]} Qe7 {[%emt 0:10:07]} 15. Ne5 {[%emt 0:02:19]} c5 {[%emt 0:04:20]} 16. dxc5 {[%emt 0:01:47]} Qxc5 {[%emt 0:00:14]} 17. Qxc5 {[%emt 0:00:39]} bxc5 {[%emt 0:00:03]} 18. Na4 {[%emt 0:00:29]} Rac8 {[%emt 0:02:37]} 19. Bc2 {[%emt 0:03:51]} Rc7 {[%emt 0:01:55]} 20. f4 {[%emt 0:01:41]} 1/2-1/2

[Event "NOR-chT Eliteserien 2018-19"]
[Site "Norway"]
[Date "2019.03.09"]
[Round "8.9"]
[White "Flermoen, Peter"]
[Black "Bern, Ivar"]
[Result "1/2-1/2"]
[ECO "B15"]
[WhiteElo "2314"]
[BlackElo "2302"]
[Annotator "NA"]
[PlyCount "56"]
[EventDate "2018.11.02"]
[EventType "team-tourn"]
[EventCountry "NOR"]
[SourceTitle "playchess.com"]
[Source "ChessBase"]
[SourceQuality "1"]
[TimeControl "40/5400+30:1800+30"]

1. e4 {[%emt 0:00:00]} c6 {[%emt 0:00:00]} 2. d4 {[%emt 0:00:00]} d5 {[%emt 0:00:00]} 3. Nc3 {[%emt 0:00:00]} g6 {[%emt 0:00:00]} 4. Nf3 {[%emt 0:03:34]} Bg7 {[%emt 0:00:53]} 5. exd5 {[%emt 0:02:48]} cxd5 {[%emt 0:00:11]} 6. Bb5+ {[%emt 0:00:50]} Bd7 {[%emt 0:08:00]} 7. Qe2 {[%emt 0:06:35]} Nf6 {[%emt 0:05:19]} 8. Bg5 {[%emt 0:02:55]} O-O {[%emt 0:01:46]} 9. Bxd7 {[%emt 0:05:27]} Nbxd7 {[%emt 0:02:15]} 10. O-O {[%emt 0:00:35]} e6 {[%emt 0:02:45]} 11. Rfd1 {[%emt 0:03:06]} a6 {[%emt 0:05:46]} 12. Ne5 {[%emt 0:07:23]} Rc8 {[%emt 0:05:49]} 13. Nxd7 {[%emt 0:08:53]} Qxd7 {[%emt 0:00:30]} 14. Qf3 {[%emt 0:00:58]} Ne8 {[%emt 0:01:26]} 15. Qd3 {[%emt 0:01:22]} Nd6 {[%emt 0:02:05]} 16. Ne2 {[%emt 0:02:01]} Nc4 {[%emt 0:03:56]} 17. Bc1 {[%emt 0:06:09]} Rc6 {[%emt 0:01:42]} 18. c3 {[%emt 0:02:07]} Rfc8 {[%emt 0:05:35]} 19. b3 {[%emt 0:01:17]} Nd6 {[%emt 0:01:00]} 20. Bf4 {[%emt 0:03:10]} Nb5 {[%emt 0:19:43]} 21. Rac1 {[%emt 0:00:16]} Na3 {[%emt 0:00:50]} 22. h3 {[%emt 0:03:29]} Bf8 {[%emt 0:01:31]} 23. Be5 {[%emt 0:02:57]} Bh6 {[%emt 0:02:08]} 24. Qf3 {[%emt 0:06:04]} f5 {[%emt 0:04:39]} 25. Bf4 {[%emt 0:04:02]} Bg7 {[%emt 0:07:19]} 26. Be5 {[%emt 0:02:35]} Bh6 {[%emt 0:00:59]} 27. Bf4 {[%emt 0:01:09]} Bg7 {[%emt 0:00:11]} 28. Be5 {[%emt 0:01:09]} Bh6 {[%emt 0:00:15]} 1/2-1/2

[Event "NOR-chT Eliteserien 2018-19"]
[Site "Norway"]
[Date "2019.03.09"]
[Round "8.10"]
[White "Stokke, Kjetil"]
[Black "Klukin, Kirill"]
[Result "1-0"]
[ECO "A50"]
[WhiteElo "2334"]
[BlackElo "2326"]
[Annotator "NA"]
[PlyCount "87"]
[EventDate "2018.11.02"]
[EventType "team-tourn"]
[EventCountry "NOR"]
[SourceTitle "playchess.com"]
[Source "ChessBase"]
[SourceQuality "1"]
[TimeControl "40/5400+30:1800+30"]

1. d4 {[%emt 0:00:35]} Nf6 {[%emt 0:00:00]} 2. c4 {[%emt 0:00:06]} Nc6 {[%emt 0:00:49]} 3. Nc3 {[%emt 0:01:48]} e6 {[%emt 0:00:16]} 4. a3 {[%emt 0:03:33]} d6 {[%emt 0:00:32]} 5. d5 {[%emt 0:03:43]} Nb8 {[%emt 0:04:29]} 6. e4 {[%emt 0:03:21]} g6 {[%emt 0:01:07]} 7. Bg5 {[%emt 0:02:48]} h6 {[%emt 0:01:29]} 8. Be3 {[%emt 0:00:06]} Bg7 {[%emt 0:00:38]} 9. f3 {[%emt 0:04:55]} a5 {[%emt 0:07:34]} 10. Nge2 {[%emt 0:03:03]} Na6 {[%emt 0:07:08]} 11. Nf4 {[%emt 0:09:13]} O-O {[%emt 0:10:34]} 12. dxe6 {[%emt 0:04:02]} Bxe6 {[%emt 0:00:11]} 13. Qd2 {[%emt 0:02:52]} Nd7 {[%emt 0:02:09]} 14. Be2 {[%emt 0:03:07]} Nac5 {[%emt 0:10:19]} 15. Rd1 {[%emt 0:01:15]} a4 {[%emt 0:00:52]} 16. O-O {[%emt 0:01:09]} Kh7 {[%emt 0:00:28]} 17. Ncd5 {[%emt 0:07:02]} Nb3 {[%emt 0:10:15]} 18. Qc2 {[%emt 0:00:56]} Ndc5 {[%emt 0:00:19]} 19. Nxe6 {[%emt 0:04:39]} fxe6 {[%emt 0:02:33]} 20. Nc3 {[%emt 0:01:57]} Qe7 {[%emt 0:07:29]} 21. f4 {[%emt 0:11:02]} c6 {[%emt 0:04:19]} 22. Kh1 {[%emt 0:03:47]} e5 {[%emt 0:05:30]} 23. f5 {[%emt 0:00:51]} Bf6 {[%emt 0:01:03]} 24. fxg6+ {[%emt 0:03:49]} Kxg6 {[%emt 0:03:48]} 25. Bg4 {[%emt 0:00:31]} Bg5 {[%emt 0:01:25]} 26. Bf5+ {[%emt 0:00:27]} Kg7 {[%emt 0:00:13]} 27. Bg1 {[%emt 0:02:38]} Qf6 {[%emt 0:07:27]} 28. Ne2 {[%emt 0:01:39]} Rad8 {[%emt 0:02:14]} 29. Ng3 {[%emt 0:01:39]} Kh8 {[%emt 0:00:38]} 30. Qe2 {[%emt 0:01:44]} Nd4 {[%emt 0:02:36]} 31. Qg4 {[%emt 0:04:29]} Nxf5 {[%emt 0:04:08]} 32. Rxf5 {[%emt 0:02:39]} Qe7 {[%emt 0:01:32]} 33. Bxc5 {[%emt 0:00:20]} dxc5 {[%emt 0:00:10]} 34. Rdf1 {[%emt 0:02:42]} Bf4 {[%emt 0:01:03]} 35. Rxf8+ {[%emt 0:03:25]} Rxf8 {[%emt 0:00:06]} 36. Nf5 {[%emt 0:01:45]} Qf7 {[%emt 0:01:37]} 37. g3 {[%emt 0:00:35]} Bg5 {[%emt 0:00:26]} 38. Qe2 {[%emt 0:01:09]} Qe6 {[%emt 0:00:41]} 39. h4 {[%emt 0:01:34]} Be7 {[%emt 0:00:19]} 40. Qh5 {[%emt 0:01:13]} Kh7 {[%emt 0:00:57]} 41. Kg2 {[%emt 0:03:02]} b5 {[%emt 0:04:30]} 42. g4 {[%emt 0:12:58]} Bd8 {[%emt 0:18:22]} 43. Rd1 {[%emt 0:03:29]} Bc7 {[%emt 0:03:46]} 44. Nxh6 {[%emt 0:01:16]} 1-0

[Event "NOR-chT Eliteserien 2018-19"]
[Site "Norway"]
[Date "2019.03.09"]
[Round "8.11"]
[White "Nielsen, Andre"]
[Black "Gullaksen, Eirik"]
[Result "1/2-1/2"]
[ECO "B32"]
[WhiteElo "2211"]
[BlackElo "2341"]
[Annotator "NA"]
[PlyCount "60"]
[EventDate "2018.11.02"]
[EventType "team-tourn"]
[EventCountry "NOR"]
[SourceTitle "playchess.com"]
[Source "ChessBase"]
[SourceQuality "1"]
[TimeControl "40/5400+30:1800+30"]

1. e4 {[%emt 0:00:00]} c5 {[%emt 0:00:00]} 2. Nf3 {[%emt 0:00:00]} Nc6 {[%emt 0:00:00]} 3. d4 {[%emt 0:00:35]} cxd4 {[%emt 0:00:06]} 4. Nxd4 {[%emt 0:00:11]} e5 {[%emt 0:00:15]} 5. Nb5 {[%emt 0:01:14]} d6 {[%emt 0:00:16]} 6. N1c3 {[%emt 0:00:30]} a6 {[%emt 0:00:22]} 7. Na3 {[%emt 0:00:42]} Be7 {[%emt 0:00:33]} 8. Be3 {[%emt 0:09:16]} Nf6 {[%emt 0:06:59]} 9. Nc4 {[%emt 0:10:49]} b5 {[%emt 0:00:48]} 10. Bb6 {[%emt 0:04:35]} Qd7 {[%emt 0:01:00]} 11. Ne3 {[%emt 0:00:25]} Rb8 {[%emt 0:03:19]} 12. Ned5 {[%emt 0:04:14]} Nxd5 {[%emt 0:00:44]} 13. Nxd5 {[%emt 0:00:19]} Bd8 {[%emt 0:00:14]} 14. Bxd8 {[%emt 0:04:18]} Qxd8 {[%emt 0:00:16]} 15. Qd2 {[%emt 0:12:17]} Ne7 {[%emt 0:11:56]} 16. Nxe7 {[%emt 0:07:50]} Qxe7 {[%emt 0:00:37]} 17. Be2 {[%emt 0:04:48]} O-O {[%emt 0:00:54]} 18. O-O {[%emt 0:00:47]} Bb7 {[%emt 0:02:08]} 19. Bd3 {[%emt 0:07:09]} Rfd8 {[%emt 0:06:43]} 20. a4 {[%emt 0:02:41]} d5 {[%emt 0:00:48]} 21. exd5 {[%emt 0:01:04]} Bxd5 {[%emt 0:00:53]} 22. axb5 {[%emt 0:03:05]} axb5 {[%emt 0:00:43]} 23. Qe3 {[%emt 0:00:26]} Bc4 {[%emt 0:12:45]} 24. Rfd1 {[%emt 0:06:51]} Bxd3 {[%emt 0:06:49]} 25. Rxd3 {[%emt 0:00:16]} Rxd3 {[%emt 0:01:27]} 26. Qxd3 {[%emt 0:00:50]} g6 {[%emt 0:03:02]} 27. Qd5 {[%emt 0:02:51]} b4 {[%emt 0:03:44]} 28. h3 {[%emt 0:02:45]} Rd8 {[%emt 0:05:22]} 29. Ra8 {[%emt 0:00:52]} Rxa8 {[%emt 0:00:09]} 30. Qxa8+ {[%emt 0:00:06]} Kg7 {[%emt 0:00:11]} 1/2-1/2

[Event "NOR-chT Eliteserien 2018-19"]
[Site "Norway"]
[Date "2019.03.09"]
[Round "8.12"]
[White "Frisvold, Ole Emil"]
[Black "Mikalsen, Harald"]
[Result "1-0"]
[ECO "E17"]
[WhiteElo "2131"]
[BlackElo "2006"]
[Annotator "NA"]
[PlyCount "63"]
[EventDate "2018.11.02"]
[EventType "team-tourn"]
[EventCountry "NOR"]
[SourceTitle "playchess.com"]
[Source "ChessBase"]
[SourceQuality "1"]
[TimeControl "40/5400+30:1800+30"]

1. d4 {[%emt 0:00:00]} Nf6 {[%emt 0:00:00]} 2. c4 {[%emt 0:00:00]} e6 {[%emt 0:00:00]} 3. Nf3 {[%emt 0:00:00]} b6 {[%emt 0:00:32]} 4. g3 {[%emt 0:00:16]} Bb7 {[%emt 0:01:15]} 5. Bg2 {[%emt 0:00:40]} Be7 {[%emt 0:01:29]} 6. O-O {[%emt 0:00:09]} O-O {[%emt 0:00:18]} 7. d5 {[%emt 0:02:10]} exd5 {[%emt 0:05:57]} 8. Nh4 {[%emt 0:00:22]} c6 {[%emt 0:09:26]} 9. cxd5 {[%emt 0:00:19]} Nxd5 {[%emt 0:01:19]} 10. Nf5 {[%emt 0:00:15]} Nc7 {[%emt 0:04:31]} 11. e4 {[%emt 0:04:07]} d5 {[%emt 0:12:18]} 12. Nc3 {[%emt 0:00:42]} Bf6 {[%emt 0:12:05]} 13. exd5 {[%emt 0:02:48]} cxd5 {[%emt 0:05:08]} 14. Bf4 {[%emt 0:05:06]} Bxc3 {[%emt 0:08:12]} 15. bxc3 {[%emt 0:01:39]} Nba6 {[%emt 0:04:27]} 16. c4 {[%emt 0:02:37]} Bc8 {[%emt 0:18:00]} 17. Ne3 {[%emt 0:07:32]} d4 {[%emt 0:01:52]} 18. Bxa8 {[%emt 0:06:39]} Nxa8 {[%emt 0:00:28]} 19. Nd5 {[%emt 0:00:50]} N8c7 {[%emt 0:03:58]} 20. Bxc7 {[%emt 0:03:18]} Nxc7 {[%emt 0:00:10]} 21. Qxd4 {[%emt 0:00:31]} Qd6 {[%emt 0:02:04]} 22. Qf4 {[%emt 0:03:48]} Nb5 {[%emt 0:03:05]} 23. Rfd1 {[%emt 0:06:45]} Qxf4 {[%emt 0:01:22]} 24. gxf4 {[%emt 0:05:35]} Na3 {[%emt 0:00:32]} 25. Ne7+ {[%emt 0:01:37]} Kh8 {[%emt 0:00:07]} 26. Nxc8 {[%emt 0:00:22]} Rxc8 {[%emt 0:00:05]} 27. Rac1 {[%emt 0:00:13]} h6 {[%emt 0:00:28]} 28. Rd7 {[%emt 0:02:40]} a5 {[%emt 0:01:34]} 29. c5 {[%emt 0:01:56]} bxc5 {[%emt 0:00:17]} 30. Rb7 {[%emt 0:00:43]} c4 {[%emt 0:00:56]} 31. Rc3 {[%emt 0:00:32]} Kh7 {[%emt 0:02:54]} 32. Rb2 {[%emt 0:00:40]} 1-0